fUSD/lending_fUSD_20241225
["ID","MTS","AMOUNT","RATE_DAILY","PERIOD"]
[346658085,1735156246911,-2565.86,0.00012256,2]
[346658086,1735156246923,-250.57,0.00012256,2]
[346658087,1735156246932,-541.91,0.00012256,2]
[346658088,1735156246943,-1308.06,0.00012256,2]
[346658089,1735156246952,-2328.38,0.00012256,2]
[346658090,1735156246962,-500.0,0.00012256,2]
[346658091,1735156246973,-938.45,0.00012256,2]
[346658092,1735156246983,-500.0,0.00012256,2]
[346658093,1735156246992,-721.96,0.00012256,2]
[346658094,1735156247002,-500.0,0.00012256,2]
[346658095,1735156247011,-500.0,0.00012256,2]
[346658096,1735156247021,-577.04,0.00012256,2]
[346658097,1735156247030,-500.0,0.00012256,2]
[346658098,1735156247039,-746.66,0.00012256,2]
[346658099,1735156247049,-500.0,0.00012256,2]
[346658100,1735156247059,-600.9,0.00012256,2]
[346658101,1735156247069,-500.0,0.00012256,2]
[346658102,1735156247079,-621.23,0.00012256,2]
[346658103,1735156247088,-500.0,0.00012256,2]
[346658104,1735156247098,-429.38,0.00012256,2]
[346658105,1735156247108,-500.0,0.00012256,2]
[346658106,1735156247118,-500.0,0.00012256,2]
[346658107,1735156247127,-1605.91,0.00012256,2]
[346658108,1735156247137,-500.0,0.00012256,2]
[346658109,1735156247148,-1780.49,0.00012256,2]
[346658110,1735156247158,-500.0,0.00012257,2]
[346658111,1735156247172,-500.0,0.00012257,2]
[346658112,1735156247182,-428.81,0.00012257,2]
[346658113,1735156247192,-500.0,0.00012257,2]
[346658114,1735156247202,-500.0,0.00012257,2]
[346658115,1735156247212,-500.0,0.00012257,2]
[346658116,1735156247222,-500.0,0.00012257,2]
[346658117,1735156247231,-500.0,0.00012257,2]
[346658118,1735156247241,-328.94,0.00012257,2]
[346658119,1735156247250,-188.02,0.00012257,2]
[346658120,1735156247260,-306.44,0.00012257,2]
[346658121,1735156247270,-500.0,0.00012257,2]
[346658122,1735156247280,-500.0,0.00012257,2]
[346658123,1735156247290,-500.0,0.00012257,2]
[346658124,1735156247300,-249.43,0.00012257,2]
[346658125,1735156247309,-500.0,0.00012257,2]
[346658126,1735156247319,-500.0,0.00012257,2]
[346658127,1735156247514,-500.0,0.00012257,2]
[346658128,1735156247523,-500.0,0.00012257,2]
[346658129,1735156247533,-500.0,0.00012257,2]
[346658130,1735156247543,-552.74,0.00012257,2]
[346658131,1735156247552,-649.65,0.00012257,2]
[346658132,1735156247561,-500.0,0.00012257,2]
[346658133,1735156247571,-500.0,0.00012257,2]
[346658134,1735156247580,-500.0,0.00012257,2]
[346658135,1735156247589,-500.0,0.00012257,2]
[346658136,1735156247599,-169.06,0.00012257,2]
[346658137,1735156247608,-219.57,0.00012257,2]
[346658138,1735156247618,-500.0,0.00012257,2]
[346658139,1735156247627,-500.0,0.00012257,2]
[346658140,1735156247637,-500.0,0.00012257,2]
[346658141,1735156247646,-298.8,0.00012257,2]
[346658142,1735156247656,-500.0,0.00012257,2]
[346658143,1735156247665,-332.41,0.00012257,2]
[346658144,1735156247675,-500.0,0.00012257,2]
[346658145,1735156247684,-500.0,0.00012257,2]
[346658146,1735156247693,-500.0,0.00012257,2]
[346658147,1735156247703,-500.0,0.00012257,2]
[346658148,1735156247712,-500.0,0.00012257,2]
[346658149,1735156247722,-500.0,0.00012257,2]
[346658150,1735156247731,-371.67,0.00012257,2]
[346658151,1735156247741,-500.0,0.00012257,2]
[346658152,1735156247751,-500.0,0.00012257,2]
[346658153,1735156247761,-500.0,0.00012257,2]
[346658154,1735156247770,-500.0,0.00012257,2]
[346658155,1735156247781,-500.0,0.00012257,2]
[346658156,1735156247790,-500.0,0.00012257,2]
[346658157,1735156247799,-609.22,0.00012257,2]
[346658158,1735156247810,-500.0,0.00012257,2]
[346658159,1735156247819,-500.0,0.00012257,2]
[346658160,1735156247829,-542.65,0.00012257,2]
[346658161,1735156247839,-523.2,0.00012257,2]
[346658162,1735156247848,-500.0,0.00012257,2]
[346658163,1735156247858,-500.0,0.00012257,2]
[346658164,1735156247867,-500.0,0.00012257,2]
[346658165,1735156247877,-500.0,0.00012257,2]
[346658166,1735156247887,-500.0,0.00012257,2]
[346658167,1735156247896,-500.0,0.00012257,2]
[346658168,1735156247906,-500.0,0.00012257,2]
[346658169,1735156247915,-500.0,0.00012257,2]
[346658170,1735156247924,-500.0,0.00012257,2]
[346658171,1735156247934,-621.82,0.00012257,2]
[346658172,1735156247944,-503.69,0.00012257,2]
[346658173,1735156247953,-500.0,0.00012257,2]
[346658174,1735156247963,-533.65,0.00012257,2]
[346658175,1735156247973,-9042.21,0.00012257,2]
[346658176,1735156247983,-500.0,0.00012257,2]
[346658177,1735156247992,-2640.19,0.00012257,2]
[346658178,1735156248002,-500.0,0.00012257,2]
[346658179,1735156248012,-1365.41,0.00012257,2]
[346658180,1735156248021,-906.88,0.00012257,2]
[346658181,1735156248031,-500.0,0.00012257,2]
[346658182,1735156248040,-500.0,0.00012257,2]
[346658183,1735156248050,-2002.31,0.00012257,2]
[346658184,1735156248060,-500.0,0.00012257,2]
[346658185,1735156248070,-500.0,0.00012257,2]
[346658186,1735156248080,-500.0,0.00012257,2]
[346658187,1735156248089,-1072.44,0.00012257,2]
[346658188,1735156248099,-500.0,0.00012257,2]
[346658189,1735156248109,-561.41,0.00012257,2]
[346658190,1735156248119,-1443.64,0.00012257,2]
[346658191,1735156248129,-500.0,0.00012257,2]
[346658192,1735156248139,-2043.97,0.00012257,2]
[346658193,1735156248149,-3406.91,0.00012257,2]
[346658194,1735156248160,-4807.11,0.00012257,2]
[346658195,1735156248173,-500.0,0.00012257,2]
[346658196,1735156248183,-500.0,0.00012257,2]
[346658197,1735156248192,-979.89,0.00012257,2]
[346658198,1735156248202,-661.24,0.00012257,2]
[346658199,1735156248213,-500.0,0.00012257,2]
[346658200,1735156248223,-1181.02,0.00012257,2]
[346658201,1735156248233,-500.0,0.00012257,2]
[346658202,1735156248243,-1551.9,0.00012257,2]
[346658203,1735156248253,-1018.46,0.00012257,2]
[346658204,1735156248263,-500.0,0.00012257,2]
[346658205,1735156248272,-500.0,0.00012257,2]
[346658206,1735156248282,-772.95,0.00012257,2]
[346658207,1735156248291,-626.69,0.00012257,2]
[346658208,1735156248301,-500.0,0.00012257,2]
[346658209,1735156248310,-500.0,0.00012257,2]
[346658210,1735156248319,-500.0,0.00012257,2]
[346658211,1735156248329,-1341.77,0.00012257,2]
[346658212,1735156248340,-864.84,0.00012257,2]
[346658213,1735156248350,-589.26,0.00012257,2]
[346658214,1735156248359,-500.0,0.00012257,2]
[346658215,1735156248369,-500.0,0.00012257,2]
[346658216,1735156248379,-2162.11,0.00012257,2]
[346658217,1735156248388,-500.0,0.00012257,2]
[346658218,1735156248398,-500.0,0.00012257,2]
[346658219,1735156248407,-500.0,0.00012257,2]
[346658220,1735156248417,-500.0,0.00012257,2]
[346658221,1735156248427,-1000.0,0.00012257,2]
[346658222,1735156248437,-2362.24,0.00012257,2]
[346658223,1735156248446,-500.0,0.00012257,2]
[346658224,1735156248456,-846.29,0.00012257,2]
[346658225,1735156248466,-500.0,0.00012257,2]
[346658226,1735156248476,-500.0,0.00012257,2]
[346658227,1735156248485,-500.0,0.00012257,2]
[346658228,1735156248494,-500.0,0.00012257,2]
[346658229,1735156248504,-500.0,0.00012257,2]
[346658230,1735156248514,-600.33,0.00012257,2]
[346658231,1735156248523,-1914.6,0.00012257,2]
[346658232,1735156248533,-689.42,0.00012257,2]
[346658233,1735156248542,-500.0,0.00012257,2]
[346658234,1735156248551,-500.0,0.00012257,2]
[346658235,1735156248561,-500.0,0.00012257,2]
[346658236,1735156248572,-603.15,0.00012257,2]
[346658237,1735156248581,-1008.57,0.00012257,2]
[346658238,1735156248591,-500.0,0.00012257,2]
[346658239,1735156248601,-500.0,0.00012257,2]
[346658240,1735156248611,-763.84,0.00012257,2]
[346658241,1735156248620,-752.12,0.00012257,2]
[346658242,1735156248630,-500.0,0.00012257,2]
[346658243,1735156248641,-1089.04,0.00012257,2]
[346658244,1735156248650,-500.0,0.00012257,2]
[346658245,1735156248660,-1180.23,0.00012257,2]
[346658246,1735156248670,-500.0,0.00012257,2]
[346658247,1735156248679,-500.0,0.00012257,2]
[346658248,1735156248690,-847.28,0.00012257,2]
[346658249,1735156248700,-500.0,0.00012257,2]
[346658250,1735156248709,-500.0,0.00012257,2]
[346658251,1735156248719,-500.0,0.00012257,2]
[346658252,1735156248729,-1325.74,0.00012257,2]
[346658253,1735156248740,-500.0,0.00012257,2]
[346658254,1735156248752,-500.0,0.00012257,2]
[346658255,1735156248762,-944.33,0.00012257,2]
[346658256,1735156248772,-500.0,0.00012257,2]
[346658257,1735156248781,-500.0,0.00012257,2]
[346658258,1735156248791,-500.0,0.00012257,2]
[346658259,1735156248801,-2029.39,0.00012257,2]
[346658260,1735156248811,-500.0,0.00012257,2]
[346658261,1735156248820,-2385.67,0.00012257,2]
[346658262,1735156248830,-251.3459568,0.00012257,2]
[346658263,1735156248839,-405.64,0.00012259,2]
[346658264,1735156248849,-500.0,0.00012259,2]
[346658265,1735156248858,-500.0,0.00012259,2]
[346658266,1735156248867,-500.0,0.00012259,2]
[346658267,1735156248877,-500.0,0.00012259,2]
[346658268,1735156248886,-500.0,0.00012259,2]
[346658269,1735156248896,-500.0,0.00012259,2]
[346658270,1735156248905,-500.0,0.00012259,2]
[346658271,1735156248916,-500.0,0.00012259,2]
[346658272,1735156248925,-500.0,0.00012259,2]
[346658273,1735156248935,-631.28,0.00012259,2]
[346658274,1735156248944,-500.0,0.00012259,2]
[346658275,1735156248954,-500.0,0.00012259,2]
[346658276,1735156248963,-500.0,0.00012259,2]
[346658277,1735156248975,-277.08,0.00012259,2]
[346658278,1735156248984,-500.0,0.00012259,2]
[346658279,1735156248993,-500.0,0.00012259,2]
[346658280,1735156249003,-500.0,0.00012259,2]
[346658281,1735156249013,-500.0,0.00012259,2]
[346658282,1735156249022,-421.5017561,0.00012259,2]
[346658283,1735156249032,-500.0,0.00012259,2]
[346658284,1735156249041,-500.0,0.00012259,2]
[346658285,1735156249051,-588.23,0.00012259,2]
[346658286,1735156249061,-500.0,0.00012259,2]
[346658287,1735156249070,-500.0,0.00012259,2]
[346658288,1735156249080,-500.0,0.00012259,2]
[346658289,1735156249090,-500.0,0.00012259,2]
[346658290,1735156249099,-331.0,0.00012259,2]
[346658291,1735156249108,-209.26437011,0.00012259,2]
[346658292,1735156249118,-500.0,0.00012259,2]
[346658293,1735156249127,-500.0,0.00012259,2]
[346658294,1735156249137,-500.0,0.00012259,2]
[346658295,1735156249147,-500.0,0.00012259,2]
[346658296,1735156249156,-500.0,0.00012259,2]
[346658297,1735156249168,-500.0,0.00012259,2]
[346658298,1735156249178,-500.0,0.00012259,2]
[346658299,1735156249187,-500.0,0.00012259,2]
[346658300,1735156249196,-500.0,0.00012259,2]
[346658301,1735156249206,-500.0,0.00012259,2]
[346658302,1735156249216,-500.0,0.00012259,2]
[346658303,1735156249226,-510.89,0.00012259,2]
[346658304,1735156249235,-500.0,0.00012259,2]
[346658305,1735156249246,-500.0,0.00012259,2]
[346658306,1735156249256,-500.0,0.00012259,2]
[346658307,1735156249266,-58.38005342,0.00012259,2]
[346658308,1735157058781,3000.0,0.00024927,120]
[346658309,1735157216129,-418.06,9.668e-05,2]
[346658310,1735157216151,-167.58,0.00010137,2]
[346658311,1735157216172,-62.52905696,0.00011306,2]
[346658328,1735157432176,-450.0,0.00011301,2]
[346658329,1735157432286,-34.28,0.00011301,2]
[346658330,1735157432295,-187.47094304,0.00011306,2]
[346658331,1735157432304,-228.24905696,0.00011329,2]
[346658362,1735157437986,-599.84094304,0.00011329,2]
[346658363,1735157437997,-1033.97866847,0.00011351,2]
[346658364,1735157438010,-547.18977324,0.00011351,2]
[346658365,1735157438023,-896.4525,0.00011351,2]
[346658366,1735157438088,-17686.35982463,0.00011351,2]
[346658367,1735157438099,-360.64,0.00011365,2]
[346658368,1735157438110,-172.04,0.00011439,2]
[346658369,1735157438121,-1182.55,0.0001155,2]
[346658370,1735157438136,-1000.0,0.00011556,2]
[346658371,1735157438145,-166.26,0.00011924,2]
[346658372,1735157438155,-418.06,0.00011932,2]
[346658373,1735157438164,-1000.0,0.00012,2]
[346658374,1735157438173,-10990.0,0.00012033,2]
[346658375,1735157438182,-7040.69417535,0.00012033,2]
[346658376,1735157438194,-3945.30582465,0.00012033,2]
[346658377,1735157438203,-3012.35620173,0.00012033,2]
[346658378,1735157438249,-7973.64379827,0.00012033,2]
[346658379,1735157438258,-10986.0,0.00012033,2]
[346658380,1735157438267,-10986.0,0.00012033,2]
[346658384,1735157438601,-10986.0,0.00012033,2]
[346658385,1735157438628,-150.99,0.00012033,2]
[346658386,1735157438640,-462.8,0.00012033,2]
[346658387,1735157438649,-150.99,0.00012033,2]
[346658388,1735157438658,-29150.0,0.00012034,2]
[346658389,1735157438668,-947.14506,0.0001214,2]
[346658390,1735157438677,-169.2653154,0.00012155,2]
[346658391,1735157438686,-914.4503,0.00012156,2]
[346658392,1735157438695,-500.0,0.00012254,2]
[346658393,1735157438705,-2455.26,0.00012254,2]
[346658394,1735157438714,-684.31,0.00012254,2]
[346658395,1735157438723,-1724.49,0.00012254,2]
[346658396,1735157438732,-1671.63,0.00012254,2]
[346658397,1735157438741,-3736.24,0.00012254,2]
[346658398,1735157438750,-825.68,0.00012254,2]
[346658399,1735157438762,-500.0,0.00012254,2]
[346658400,1735157438771,-500.0,0.00012254,2]
[346658401,1735157438781,-928.03,0.00012254,2]
[346658402,1735157438790,-848.65,0.00012254,2]
[346658403,1735157438799,-7500.0,0.00012254,2]
[346658404,1735157438808,-1301.56,0.00012254,2]
[346658405,1735157438818,-155.940263,0.00012254,2]
[346658406,1735157438827,-431.218036,0.00012254,2]
[346658407,1735157438836,-500.0,0.00012254,2]
[346658408,1735157438845,-496.941497,0.00012254,2]
[346658409,1735157438855,-1352.94,0.00012254,2]
[346658410,1735157438864,-1013.06,0.00012254,2]
[346658411,1735157438873,-1077.55,0.00012254,2]
[346658412,1735157438882,-735.64,0.00012254,2]
[346658413,1735157438891,-783.83,0.00012254,2]
[346658414,1735157438899,-3515.88746773,0.00012254,2]
[346658415,1735157438920,-1640.78253227,0.00012254,2]
[346658416,1735157438929,-870.23,0.00012254,2]
[346658417,1735157438938,-500.0,0.00012254,2]
[346658418,1735157438947,-1435.05,0.00012254,2]
[346658419,1735157438956,-1188.46,0.00012254,2]
[346658420,1735157438965,-617.49,0.00012254,2]
[346658421,1735157438974,-1087.87,0.00012254,2]
[346658422,1735157438983,-1044.75,0.00012254,2]
[346658423,1735157438992,-529.31,0.00012254,2]
[346658424,1735157439001,-500.0,0.00012254,2]
[346658425,1735157439010,-5169.71,0.00012254,2]
[346658426,1735157439019,-6452.81,0.00012254,2]
[346658427,1735157439029,-837.44,0.00012254,2]
[346658428,1735157439038,-1260.29,0.00012254,2]
[346658429,1735157439047,-3137.66,0.00012254,2]
[346658430,1735157439057,-753.26,0.00012254,2]
[346658431,1735157439066,-1255.03,0.00012254,2]
[346658432,1735157439075,-2010.02,0.00012254,2]
[346658433,1735157439085,-500.0,0.00012254,2]
[346658434,1735157439094,-2458.95,0.00012254,2]
[346658435,1735157439103,-1395.77,0.00012254,2]
[346658436,1735157439111,-1235.04,0.00012254,2]
[346658437,1735157439121,-989.28,0.00012254,2]
[346658438,1735157439131,-1253.56,0.00012254,2]
[346658439,1735157439140,-1176.4,0.00012254,2]
[346658440,1735157439153,-2231.36,0.00012254,2]
[346658441,1735157439162,-446.43,0.00012254,2]
[346658442,1735157439170,-5271.09050315,0.00012254,2]
[346658455,1735157440294,-236.95949685,0.00012254,2]
[346658456,1735157440303,-2069.61,0.00012254,2]
[346658457,1735157440312,-500.0,0.00012254,2]
[346658458,1735157440321,-979.16,0.00012254,2]
[346658459,1735157440330,-500.0,0.00012254,2]
[346658460,1735157440339,-575.87,0.00012254,2]
[346658461,1735157440349,-773.86,0.00012254,2]
[346658462,1735157440358,-294.713,0.00012254,2]
[346658463,1735157440367,-899.35,0.00012254,2]
[346658464,1735157440376,-7064.26,0.00012254,2]
[346658465,1735157440385,-500.0,0.00012254,2]
[346658466,1735157440394,-500.0,0.00012254,2]
[346658467,1735157440404,-1514.74,0.00012254,2]
[346658468,1735157440413,-1539.0,0.00012254,2]
[346658469,1735157440423,-500.0,0.00012254,2]
[346658470,1735157440432,-691.88,0.00012254,2]
[346658471,1735157440441,-1618.25,0.00012254,2]
[346658472,1735157440452,-500.0,0.00012254,2]
[346658473,1735157440462,-1059.15,0.00012254,2]
[346658474,1735157440471,-500.0,0.00012254,2]
[346658475,1735157440480,-500.0,0.00012254,2]
[346658476,1735157440489,-500.0,0.00012254,2]
[346658477,1735157440498,-359.66669632,0.00012254,2]
[346658478,1735157440509,-235.68330368,0.00012254,2]
[346658479,1735157440519,-500.0,0.00012254,2]
[346658480,1735157440528,-500.0,0.00012254,2]
[346658481,1735157440537,-1264.95,0.00012254,2]
[346658482,1735157440546,-500.0,0.00012254,2]
[346658483,1735157440555,-500.0,0.00012254,2]
[346658484,1735157440564,-542.26565413,0.00012254,2]
[346658485,1735157440576,-298.05499999,0.00012254,2]
[346658486,1735157440587,-500.0,0.00012254,2]
[346658514,1735157443208,-1189.85934588,0.00012254,2]
[346658515,1735157443218,-888.11,0.00012254,2]
[346658516,1735157443227,-328.8,0.00012255,2]
[346658517,1735157443236,-204.97264556,0.00012255,2]
[346658518,1735157443245,-500.0,0.00012255,2]
[346658519,1735157443254,-500.0,0.00012255,2]
[346658520,1735157443263,-500.0,0.00012255,2]
[346658521,1735157443272,-500.0,0.00012255,2]
[346658522,1735157443281,-500.0,0.00012255,2]
[346658523,1735157443290,-500.0,0.00012255,2]
[346658524,1735157443299,-500.0,0.00012255,2]
[346658525,1735157443308,-500.0,0.00012255,2]
[346658526,1735157443318,-500.0,0.00012255,2]
[346658527,1735157443327,-500.0,0.00012255,2]
[346658528,1735157443336,-500.0,0.00012255,2]
[346658529,1735157443345,-500.0,0.00012255,2]
[346658530,1735157443355,-500.0,0.00012255,2]
[346658531,1735157443364,-500.0,0.00012255,2]
[346658532,1735157443373,-312.37898119,0.00012255,2]
[346658533,1735157443384,-187.62101881,0.00012255,2]
[346658534,1735157443394,-297.68398119,0.00012255,2]
[346658535,1735157443532,-72.01878406,0.00012255,2]
[346658536,1735157443544,-169.86723475,0.00012255,2]
[346658537,1735157443554,-336.89831707,0.00012255,2]
[346658538,1735157443564,-500.0,0.00012255,2]
[346658539,1735157443573,-500.0,0.00012255,2]
[346658540,1735157443582,-500.0,0.00012255,2]
[346658541,1735157443592,-500.0,0.00012255,2]
[346658542,1735157443601,-500.0,0.00012255,2]
[346658543,1735157443611,-500.0,0.00012255,2]
[346658545,1735157443620,-590.09,0.00012255,2]
[346658546,1735157443630,-500.0,0.00012255,2]
[346658547,1735157443640,-500.0,0.00012255,2]
[346658548,1735157443650,-500.0,0.00012255,2]
[346658549,1735157443660,-500.0,0.00012255,2]
[346658550,1735157443670,-500.0,0.00012255,2]
[346658551,1735157443679,-500.0,0.00012255,2]
[346658552,1735157443689,-500.0,0.00012255,2]
[346658553,1735157443699,-500.0,0.00012255,2]
[346658554,1735157443709,-499.08375275,0.00012255,2]
[346658555,1735157443719,-500.0,0.00012255,2]
[346658556,1735157443728,-202.42911905,0.00012255,2]
[346658557,1735157443738,-594.99,0.00012255,2]
[346658558,1735157443748,-500.0,0.00012255,2]
[346658559,1735157443761,-500.0,0.00012255,2]
[346658560,1735157443770,-500.0,0.00012255,2]
[346658561,1735157443780,-500.0,0.00012255,2]
[346658562,1735157443789,-500.0,0.00012255,2]
[346658563,1735157443802,-500.0,0.00012255,2]
[346658564,1735157443810,-500.0,0.00012255,2]
[346658565,1735157443820,-500.0,0.00012255,2]
[346658566,1735157443830,-500.0,0.00012255,2]
[346658567,1735157443841,-500.0,0.00012255,2]
[346658568,1735157443852,-500.0,0.00012255,2]
[346658569,1735157443862,-500.0,0.00012255,2]
[346658570,1735157443875,-500.0,0.00012255,2]
[346658571,1735157443885,-500.0,0.00012255,2]
[346658572,1735157443895,-646.74,0.00012255,2]
[346658573,1735157443904,-500.0,0.00012255,2]
[346658574,1735157443914,-500.0,0.00012255,2]
[346658575,1735157443923,-500.0,0.00012255,2]
[346658576,1735157443933,-500.0,0.00012255,2]
[346658577,1735157443943,-500.0,0.00012255,2]
[346658578,1735157443953,-500.0,0.00012255,2]
[346658579,1735157443962,-500.0,0.00012255,2]
[346658580,1735157443972,-500.0,0.00012255,2]
[346658581,1735157443981,-500.0,0.00012255,2]
[346658582,1735157443991,-636.95,0.00012255,2]
[346658583,1735157444000,-500.0,0.00012255,2]
[346658584,1735157444009,-583.84,0.00012255,2]
[346658585,1735157444019,-500.0,0.00012255,2]
[346658586,1735157444028,-509.93329149,0.00012255,2]
[346658587,1735157444037,-500.0,0.00012255,2]
[346658588,1735157444047,-500.0,0.00012255,2]
[346658589,1735157444056,-623.36,0.00012255,2]
[346658590,1735157444066,-500.0,0.00012255,2]
[346658591,1735157444075,-500.0,0.00012255,2]
[346658592,1735157444087,-643.96,0.00012255,2]
[346658593,1735157444097,-500.0,0.00012255,2]
[346658594,1735157444106,-500.0,0.00012255,2]
[346658595,1735157444115,-500.0,0.00012255,2]
[346658596,1735157444124,-500.0,0.00012255,2]
[346658597,1735157444134,-500.0,0.00012255,2]
[346658598,1735157444148,-500.0,0.00012255,2]
[346658599,1735157444158,-500.0,0.00012255,2]
[346658600,1735157444167,-500.0,0.00012255,2]
[346658601,1735157444177,-614.46,0.00012255,2]
[346658602,1735157444187,-500.0,0.00012255,2]
[346658603,1735157444196,-500.0,0.00012255,2]
[346658604,1735157444206,-511.42,0.00012255,2]
[346658605,1735157444215,-890.16,0.00012255,2]
[346658606,1735157444224,-500.0,0.00012255,2]
[346658607,1735157444234,-1198.03,0.00012255,2]
[346658608,1735157444243,-500.0,0.00012255,2]
[346658609,1735157444252,-500.0,0.00012255,2]
[346658610,1735157444262,-202.54,0.00012255,2]
[346658611,1735157444271,-500.0,0.00012255,2]
[346658612,1735157444280,-3264.96,0.00012255,2]
[346658613,1735157444289,-1918.88,0.00012255,2]
[346658614,1735157444299,-500.0,0.00012255,2]
[346658615,1735157444309,-500.0,0.00012255,2]
[346658616,1735157444318,-500.0,0.00012255,2]
[346658617,1735157444327,-500.0,0.00012255,2]
[346658618,1735157444338,-939.06,0.00012255,2]
[346658619,1735157444347,-538.02,0.00012255,2]
[346658620,1735157444356,-500.0,0.00012255,2]
[346658621,1735157444366,-500.0,0.00012255,2]
[346658622,1735157444376,-1487.24,0.00012255,2]
[346658623,1735157444386,-2328.16,0.00012255,2]
[346658624,1735157444398,-500.0,0.00012255,2]
[346658625,1735157444408,-534.52,0.00012255,2]
[346658626,1735157444417,-740.74,0.00012255,2]
[346658627,1735157444427,-500.0,0.00012255,2]
[346658628,1735157444437,-500.0,0.00012255,2]
[346658629,1735157444446,-500.0,0.00012255,2]
[346658630,1735157444457,-500.0,0.00012255,2]
[346658631,1735157444467,-163.85,0.00012255,2]
[346658632,1735157444476,-500.0,0.00012255,2]
[346658633,1735157444486,-500.0,0.00012255,2]
[346658634,1735157444495,-633.69,0.00012255,2]
[346658635,1735157444505,-828.8,0.00012255,2]
[346658636,1735157444514,-500.0,0.00012255,2]
[346658637,1735157444523,-500.0,0.00012255,2]
[346658638,1735157444533,-500.0,0.00012255,2]
[346658639,1735157444543,-2072.02,0.00012255,2]
[346658640,1735157444553,-500.0,0.00012255,2]
[346658641,1735157444562,-2263.81,0.00012255,2]
[346658642,1735157444571,-564.71,0.00012255,2]
[346658643,1735157444581,-500.0,0.00012255,2]
[346658644,1735157444591,-500.0,0.00012255,2]
[346658645,1735157444600,-500.0,0.00012255,2]
[346658646,1735157444609,-500.0,0.00012255,2]
[346658647,1735157444619,-500.0,0.00012255,2]
[346658648,1735157444628,-500.0,0.00012255,2]
[346658649,1735157444637,-500.0,0.00012255,2]
[346658650,1735157444647,-500.0,0.00012255,2]
[346658651,1735157444656,-660.7,0.00012255,2]
[346658652,1735157444665,-500.0,0.00012255,2]
[346658653,1735157444675,-500.0,0.00012255,2]
[346658654,1735157444684,-500.0,0.00012255,2]
[346658655,1735157444694,-575.32,0.00012255,2]
[346658656,1735157444703,-500.0,0.00012255,2]
[346658657,1735157444713,-500.0,0.00012255,2]
[346658658,1735157444724,-500.0,0.00012255,2]
[346658659,1735157444734,-500.0,0.00012255,2]
[346658660,1735157444743,-500.0,0.00012255,2]
[346658661,1735157444758,-500.0,0.00012255,2]
[346658663,1735157444768,-500.0,0.00012255,2]
[346658665,1735157444778,-828.0,0.00012255,2]
[346658667,1735157444788,-500.0,0.00012255,2]
[346658668,1735157444799,-1183.92,0.00012255,2]
[346658669,1735157444809,-500.0,0.00012255,2]
[346658670,1735157444819,-1282.29,0.00012255,2]
[346658671,1735157444831,-177.48,0.00012255,2]
[346658672,1735157444843,-732.02,0.00012255,2]
[346658673,1735157444854,-500.0,0.00012255,2]
[346658674,1735157444864,-900.12,0.00012255,2]
[346658675,1735157444875,-500.0,0.00012255,2]
[346658676,1735157444884,-500.0,0.00012255,2]